fUSD/lending_fUSD_20250322
["ID","MTS","AMOUNT","RATE_DAILY","PERIOD"]
[356554182,1742651432750,-23900.0,0.00043619,2]
[356554183,1742651432759,-8047.71,0.00043619,2]
[356554184,1742651432769,-155.0,0.00043684,2]
[356554185,1742651432778,-584.64,0.00043875,2]
[356554186,1742651432788,-584.64,0.00043875,2]
[356554187,1742651432797,-584.64,0.00043875,2]
[356554188,1742651432807,-584.64,0.00043875,2]
[356554189,1742651432816,-584.64,0.00043875,2]
[356554190,1742651432825,-584.64,0.00043875,2]
[356554191,1742651432835,-584.64,0.00043875,2]
[356554192,1742651432845,-584.64,0.00043875,2]
[356554193,1742651432854,-584.64,0.00043875,2]
[356554194,1742651432863,-584.64,0.00043875,2]
[356554195,1742651432872,-155.0,0.00043875,2]
[356554196,1742651432882,-475.61,0.00043886,2]
[356554198,1742651432891,-2868.23311769,0.00043929,2]
[356554199,1742651432900,-987.7,0.0004393,2]
[356554200,1742651432909,-150.99,0.0004393,2]
[356554201,1742651432918,-30353.92,0.0004393,30]
[356554202,1742651432928,-993.39,0.0004393,2]
[356554203,1742651432938,-278.67,0.0004393,2]
[356554204,1742651432947,-243.48,0.0004393,2]
[356554205,1742651432956,-999.99,0.0004393,2]
[356554206,1742651432966,-299.99,0.0004393,120]
[356554207,1742651432975,-643.31,0.0004393,2]
[356554208,1742651432984,-150.99,0.0004393,30]
[356554209,1742651432993,-5960.87442812,0.0004393,2]
[356554210,1742651433004,-415.87469936,0.0004393,2]
[356554211,1742651433053,-463.5345,0.0004393,2]
[356554212,1742651433075,-1044.76637252,0.0004393,2]
[356554213,1742651433084,-125.41374664,0.0004393,2]
[356554214,1742651433149,-2895.01625336,0.0004393,2]
[356554215,1742651433159,-434.38600223,0.00043943,2]
[356554216,1742651433169,-150.0,0.00043945,30]
[356554217,1742651433178,-150.0,0.00043945,30]
[356554218,1742651433188,-150.0,0.00043945,30]
[356554219,1742651433197,-12068.39684879,0.0004403,2]
[356554220,1742651438231,-301.73755605,0.0004403,2]
[356554221,1742651438244,-281.78311804,0.0004403,2]
[356554222,1742651438288,-8953.94836105,0.0004403,2]
[356554223,1742651438298,-281.61309658,0.0004403,2]
[356554224,1742651438309,-155.0,0.00044067,2]
[356554225,1742651438319,-434.38600223,0.00044184,2]
[356554226,1742651438328,-34.99434012,0.000442,18]
[356554227,1742651438340,-511.96036257,0.000442,18]
[356554228,1742651438351,-545.13529731,0.000442,18]
[356554229,1742651438361,-155.0,0.00044258,2]
[356554230,1742651438370,-2156.26752985,0.0004429,2]
[356554231,1742651438400,-330.3001521,0.0004429,2]
[356554232,1742651438411,-289.18728201,0.0004429,2]
[356554233,1742651438422,-887.57184078,0.0004429,2]
[356554234,1742651438432,-450.73089526,0.0004429,2]
[356554235,1742651438442,-375.87218547,0.000443,2]
[356554278,1742651440461,-624.12781453,0.000443,2]
[356554279,1742651440470,-1283.48849638,0.000443,2]
[356554280,1742651440520,-1216.51150362,0.000443,2]
[356554281,1742651440529,-161.0038,0.000443,2]
[356554282,1742651440539,-3196.67008254,0.00044388,120]
[356554283,1742651440548,-658.54808026,0.0004439,16]
[356554284,1742651440558,-915.7871,0.0004439,2]
[356554285,1742651440567,-49161.4292,0.0004439,2]
[356554286,1742651440577,-12028.3542,0.0004439,2]
[356554287,1742651440586,-458.8668,0.0004439,2]
[356554288,1742651440595,-7441.0262,0.000444,2]
[356554289,1742651440605,-500.0,0.000444,2]
[356554290,1742651440614,-1000.0,0.000444,2]
[356554291,1742651440623,-158.82585471,0.000444,19]
[356554292,1742651440633,-190.16193828,0.000444,120]
[356554293,1742651440642,-216.33402947,0.000444,2]
[356554294,1742651440652,-165.87915215,0.000444,15]
[356554295,1742651440662,-158.36522293,0.000444,2]
[356554296,1742651440672,-526.2383809,0.000444,2]
[356554297,1742651440682,-20902.90920359,0.000444,15]
[356554298,1742651440692,-155.0,0.0004445,2]
[356554299,1742651440702,-155.31669558,0.00044473,10]
[356554300,1742651440711,-152.31118546,0.00044473,10]
[356554301,1742651440721,-500.32859488,0.00044473,10]
[356554302,1742651440730,-500.0,0.00044473,2]
[356554303,1742651440740,-153.40413363,0.00044473,10]
[356554304,1742651440749,-160.3880798,0.00044473,10]
[356554305,1742651440759,-500.0,0.00044479,120]
[356554306,1742651440768,-231.16225156,0.00044479,120]
[356554307,1742651440777,-255.0,0.0004448,2]
[356554308,1742651440787,-262.7,0.0004448,2]
[356554309,1742651440796,-31841.9210503,0.0004448,3]
[356554310,1742651440805,-5000.0,0.0004449,120]
[356554311,1742651440815,-150.0,0.00044493,30]
[356554312,1742651440824,-150.0,0.00044493,30]
[356554313,1742651440833,-291.2591884,0.000445,61]
[356554314,1742651440843,-102850.57211222,0.000445,39]
[356554315,1742651440852,-3957135.66466339,0.000445,120]
[356554316,1742651440861,-13027.42475092,0.000445,30]
[356554317,1742651440871,-1200.0,0.000445,16]
[356554318,1742651440880,-359.35142633,0.00044523,2]
[356554319,1742651440889,-2400.0,0.000446,16]
[356554320,1742651440899,-155.0,0.00044642,2]
[356554321,1742651440908,-20902.90920358,0.00044678,15]
[356554322,1742651440917,-3600.0,0.000447,16]
[356554323,1742651440927,-4800.0,0.000448,16]
[356554324,1742651440937,-155.0,0.00044833,2]
[356554325,1742651440946,-6100.0,0.000449,16]
[356554326,1742651440955,-156.72955192,0.000449,120]
[356554327,1742651440965,-200.96351691,0.000449,10]
[356554328,1742651440975,-20902.90920358,0.00044956,15]
[356554329,1742651440984,-150.0,0.000451,2]
[356554330,1742651440995,-166.68,0.0004517,2]
[356554331,1742651441004,-20902.90920358,0.00045233,15]
[356554332,1742651441013,-20902.90920358,0.00045511,15]
[356554333,1742651441023,-150.0,0.00045785,2]
[356554334,1742651441032,-20902.90920358,0.00045789,15]
[356554335,1742651441041,-165.87915211,0.000459,21]
[356554336,1742651441050,-150.0,0.000459,30]
[356554337,1742651441059,-150.0,0.000459,30]
[356554338,1742651441068,-150.0,0.000459,30]
[356554339,1742651441077,-150.00000001,0.000459,30]
[356554340,1742651441086,-2873.5,0.00045999,2]
[356554341,1742651441095,-50000.0,0.00046,46]
[356554342,1742651441105,-10649.88865128,0.0004603,15]
[356554343,1742651441114,-760.81137038,0.00046047,2]
[356554344,1742651441123,-20902.90920358,0.00046067,15]
[356554345,1742651441133,-475.61,0.0004615,2]
[356554346,1742651441142,-644.0,0.00046196,7]
[356554347,1742651441152,-200.0,0.00046263,30]
[356554348,1742651441161,-154.42,0.000463,39]
[356554349,1742651441170,-10649.88865128,0.0004632,15]
[356554350,1742651441180,-20902.90920358,0.00046344,15]
[356554351,1742651441190,-528.59,0.00046497,2]
[356554352,1742651441199,-155.29464908,0.00046573,10]
[356554353,1742651441208,-500.0,0.00046573,10]
[356554354,1742651441218,-502.65889,0.00046575,120]
[356554355,1742651441227,-407.69147,0.00046575,120]
[356554356,1742651441236,-158.830351,0.00046575,120]
[356554357,1742651441246,-500.0,0.00046575,120]
[356554358,1742651441255,-500.0,0.00046575,120]
[356554359,1742651441264,-500.0,0.00046575,120]
[356554360,1742651441273,-500.0,0.00046575,60]
[356554361,1742651441283,-500.0,0.00046575,120]
[356554362,1742651441292,-500.0,0.00046575,120]
[356554363,1742651441300,-500.0,0.00046575,2]
[356554364,1742651441309,-500.0,0.00046575,120]
[356554365,1742651441319,-500.0,0.00046575,120]
[356554366,1742651441328,-500.0,0.00046575,120]
[356554367,1742651441337,-500.0,0.00046575,120]
[356554368,1742651441346,-500.0,0.00046575,120]
[356554369,1742651441356,-500.0,0.00046575,120]
[356554370,1742651441365,-500.0,0.00046575,120]
[356554371,1742651441374,-500.0,0.00046575,120]
[356554372,1742651441383,-3000.0,0.00046575,120]
[356554373,1742651441395,-500.0,0.00046575,120]
[356554374,1742651441404,-500.0,0.00046575,120]
[356554376,1742651441413,-522.0554852,0.00046575,120]
[356554377,1742651441423,-506.1227815,0.00046575,120]
[356554378,1742651441432,-508.336839,0.00046575,120]
[356554379,1742651441442,-500.0,0.00046575,120]
[356554380,1742651441452,-500.0,0.00046575,120]
[356554381,1742651441462,-500.0,0.00046575,120]
[356554382,1742651441472,-504.50781307,0.00046575,120]
[356554383,1742651441481,-501.24932811,0.00046575,120]
[356554384,1742651441490,-500.0,0.00046575,120]
[356554385,1742651441499,-542.20553441,0.00046575,120]
[356554386,1742651441509,-500.0,0.00046575,120]
[356554387,1742651441519,-504.58289508,0.00046575,120]
[356554388,1742651441530,-500.0,0.00046575,120]
[356554389,1742651441540,-500.0,0.00046575,120]
[356554390,1742651441549,-520.872007,0.00046575,120]
[356554391,1742651441699,-503.49937651,0.00046575,120]
[356554392,1742651441708,-500.0,0.00046575,120]
[356554393,1742651441718,-500.0,0.00046575,120]
[356554394,1742651441727,-536.98,0.00046575,120]
[356554395,1742651441737,-522.66439166,0.00046575,120]
[356554396,1742651441746,-500.0,0.00046575,120]
[356554397,1742651441755,-500.0,0.00046575,120]
[356554398,1742651441765,-551.10245135,0.00046575,120]
[356554399,1742651441774,-500.0,0.00046575,120]
[356554400,1742651441784,-295.15721852,0.00046575,120]
[356554401,1742651441793,-500.0,0.00046575,120]
[356554402,1742651441803,-500.0,0.00046575,120]
[356554403,1742651441812,-500.0,0.00046575,120]
[356554404,1742651441822,-500.0,0.00046575,120]
[356554405,1742651441831,-500.0,0.00046575,120]
[356554406,1742651441840,-597.79,0.00046575,120]
[356554407,1742651441849,-500.0,0.00046575,120]
[356554408,1742651441859,-500.0,0.00046575,120]
[356554409,1742651441869,-500.0,0.00046575,120]
[356554410,1742651441878,-500.0,0.00046575,120]
[356554411,1742651441888,-1270.91,0.00046575,120]
[356554412,1742651441898,-500.0,0.00046575,120]
[356554413,1742651441907,-266.65753713,0.00046575,120]
[356554414,1742651441916,-500.0,0.00046575,120]
[356554415,1742651441926,-500.0,0.00046575,120]
[356554416,1742651441935,-500.0,0.00046575,120]
[356554417,1742651441945,-500.0,0.00046575,120]
[356554418,1742651441954,-500.0,0.00046575,120]
[356554419,1742651441963,-500.0,0.00046575,120]
[356554420,1742651441973,-500.0,0.00046575,120]
[356554421,1742651441982,-500.0,0.00046575,120]
[356554422,1742651441991,-500.0,0.00046575,120]
[356554423,1742651442000,-500.0,0.00046575,120]
[356554424,1742651442010,-529.19743706,0.00046575,120]
[356554425,1742651442019,-500.0,0.00046575,10]
[356554426,1742651442029,-500.0,0.00046575,120]
[356554427,1742651442038,-500.0,0.00046575,120]
[356554428,1742651442047,-500.0,0.00046575,120]
[356554429,1742651442056,-500.0,0.00046575,120]
[356554430,1742651442066,-500.0,0.00046575,120]
[356554431,1742651442075,-500.0,0.00046575,120]
[356554432,1742651442084,-500.0,0.00046575,120]
[356554433,1742651442094,-500.0,0.00046575,120]
[356554434,1742651442103,-500.0,0.00046575,120]
[356554435,1742651442112,-500.0,0.00046575,120]
[356554436,1742651442122,-500.0,0.00046575,120]
[356554437,1742651442131,-500.0,0.00046575,120]
[356554438,1742651442140,-500.0,0.00046575,120]
[356554439,1742651442149,-500.0,0.00046575,120]
[356554440,1742651442158,-500.0,0.00046575,120]
[356554441,1742651442167,-500.0,0.00046575,120]
[356554442,1742651442176,-500.0,0.00046575,120]
[356554443,1742651442186,-109.57370632,0.00046575,120]
[356554444,1742651442202,-292.40505218,0.00046575,120]
[356554445,1742651443499,-284.34230538,0.000444,2]
[356554446,1742651443509,-250.01656051,0.00044982,10]
[356554447,1742651443519,-98.0212415,0.00046575,120]
[356554448,1742651443529,-500.0,0.00046575,120]
[356554449,1742651443538,-500.0,0.00046575,120]
[356554450,1742651443548,-174.20691852,0.00046575,120]
[356554479,1742651446350,-325.79308148,0.00046575,120]
[356554481,1742651446362,-500.0,0.00046575,120]
[356554483,1742651446373,-500.0,0.00046575,120]
[356554486,1742651446384,-537.26,0.00046575,120]
[356554488,1742651446397,-500.0,0.00046575,120]
[356554490,1742651446410,-500.0,0.00046575,120]
[356554492,1742651446421,-500.0,0.00046575,120]
[356554494,1742651446431,-500.0,0.00046575,120]
[356554496,1742651446442,-500.0,0.00046575,120]
[356554498,1742651446453,-500.0,0.00046575,120]
[356554500,1742651446464,-500.0,0.00046575,120]
[356554503,1742651446475,-2379.23,0.00046575,120]
[356554505,1742651446488,-500.0,0.00046575,120]
[356554507,1742651446498,-500.0,0.00046575,120]
[356554509,1742651446509,-500.0,0.00046575,120]
[356554511,1742651446521,-243.98487938,0.00046575,120]
[356554512,1742651446533,-500.0,0.00046575,120]
[356554513,1742651446545,-500.0,0.00046575,120]
[356554514,1742651446556,-500.0,0.00046575,120]
[356554515,1742651446567,-500.0,0.00046575,120]
[356554516,1742651446578,-500.0,0.00046575,120]
[356554517,1742651446588,-500.0,0.00046575,120]
[356554518,1742651446599,-500.0,0.00046575,120]
[356554519,1742651446609,-500.0,0.00046575,120]
[356554520,1742651446619,-500.0,0.00046575,120]
[356554521,1742651446628,-500.0,0.00046575,120]
[356554522,1742651446638,-500.0,0.00046575,120]
[356554523,1742651446647,-500.0,0.00046575,120]
[356554524,1742651446657,-500.0,0.00046575,120]
[356554525,1742651446667,-500.0,0.00046575,120]
[356554526,1742651446677,-500.0,0.00046575,120]
[356554527,1742651446687,-500.0,0.00046575,120]
[356554528,1742651446697,-500.01171302,0.00046575,120]
[356554529,1742651446707,-500.0,0.00046575,120]
[356554530,1742651446716,-503.12304703,0.00046575,120]
[356554531,1742651446727,-500.0,0.00046575,120]
[356554534,1742651446935,-500.0,0.00046575,120]
[356554535,1742651446947,-500.0,0.00046575,120]
[356554536,1742651446957,-500.0,0.00046575,120]
[356554537,1742651446967,-500.0,0.00046575,120]
[356554538,1742651446977,-500.0,0.00046575,120]
[356554539,1742651446986,-500.0,0.00046575,120]
[356554540,1742651446996,-500.0,0.00046575,120]
[356554541,1742651447005,-904.91,0.00046575,120]
[356554542,1742651447015,-500.0,0.00046575,120]
[356554543,1742651447025,-500.0,0.00046575,120]
[356554544,1742651447034,-500.0,0.00046575,120]
[356554545,1742651447046,-500.0,0.00046575,120]
[356554546,1742651447055,-500.0,0.00046575,120]
[356554547,1742651447065,-500.0,0.00046575,120]
[356554548,1742651447075,-500.0,0.00046575,120]
[356554549,1742651447085,-500.0,0.00046575,120]
[356554550,1742651447094,-500.0,0.00046575,120]
[356554551,1742651447104,-500.0,0.00046575,120]
[356554552,1742651447113,-500.0,0.00046575,120]
[356554553,1742651447124,-500.0,0.00046575,120]
[356554554,1742651447133,-353.00691706,0.00046575,120]
[356554555,1742651447143,-500.0,0.00046575,120]
[356554556,1742651447153,-500.0,0.00046575,120]
[356554557,1742651447163,-500.0,0.00046575,120]
[356554558,1742651447172,-500.0,0.00046575,120]
[356554559,1742651447181,-500.0,0.00046575,120]
[356554560,1742651447190,-500.0,0.00046575,120]
[356554561,1742651447199,-500.0,0.00046575,120]
[356554562,1742651447208,-500.0,0.00046575,120]
[356554563,1742651447217,-500.0,0.00046575,120]
[356554564,1742651447227,-500.0,0.00046575,120]
[356554565,1742651447236,-500.0,0.00046575,120]
[356554566,1742651447249,-500.0,0.00046575,120]
[356554567,1742651447258,-500.0,0.00046575,120]
[356554568,1742651447267,-500.0,0.00046575,120]
[356554569,1742651447276,-447.86115647,0.00046575,120]
[356554570,1742651447290,-52.13884353,0.00046575,120]
[356554571,1742651447300,-500.0,0.00046575,120]
[356554572,1742651447309,-500.0,0.00046575,120]
[356554573,1742651447319,-500.0,0.00046575,120]
[356554574,1742651447328,-500.0,0.00046575,120]
[356554575,1742651447337,-500.0,0.00046575,120]
[356554576,1742651447346,-500.0,0.00046575,120]
[356554577,1742651447356,-500.0,0.00046575,120]
[356554578,1742651447365,-500.0,0.00046575,120]
[356554579,1742651447375,-80.14668237,0.00046575,120]
[356554580,1742651447386,-419.85331763,0.00046575,120]
[356554581,1742651447396,-500.0,0.00046575,120]
[356554582,1742651447405,-500.0,0.00046575,120]
[356554583,1742651447415,-500.0,0.00046575,120]
[356554584,1742651447424,-500.0,0.00046575,120]
[356554585,1742651447434,-501.63045023,0.00046575,120]
[356554586,1742651447443,-368.36246748,0.00046575,120]
[356554587,1742651447452,-547.68124687,0.00046575,120]
[356554588,1742651447462,-600.13133901,0.00046575,120]
[356554589,1742651447471,-503.21919733,0.00046575,120]
[356554590,1742651447480,-500.0,0.00046575,120]
[356554591,1742651447490,-500.0,0.00046575,120]
[356554592,1742651447500,-500.0,0.00046575,120]
[356554593,1742651447509,-500.0,0.00046575,120]
[356554594,1742651447518,-500.0,0.00046575,120]
[356554595,1742651447528,-536.86,0.00046575,120]
[356554596,1742651447537,-500.0,0.00046575,120]
[356554597,1742651447547,-504.46794975,0.00046575,120]
[356554598,1742651447556,-536.01,0.00046575,120]
[356554599,1742651447566,-500.0,0.00046575,120]
[356554600,1742651447575,-500.0,0.00046575,120]
[356554601,1742651447585,-500.0,0.00046575,120]
[356554602,1742651447594,-500.0,0.00046575,120]
[356554603,1742651447604,-500.0,0.00046575,120]
[356554604,1742651447614,-500.0,0.00046575,120]
[356554605,1742651447623,-500.0,0.00046575,120]
[356554606,1742651447636,-503.97504952,0.00046575,120]
[356554607,1742651447646,-500.0,0.00046575,120]
[356554608,1742651447655,-500.0,0.00046575,120]
[356554609,1742651447666,-500.0,0.00046575,120]
[356554610,1742651447676,-502.55719155,0.00046575,120]
[356554611,1742651447686,-59.41133868,0.00046575,120]
[356554612,1742651447703,-440.58866132,0.00046575,120]
[356554613,1742651447712,-500.0,0.00046575,120]
[356554614,1742651447722,-343.33680495,0.00046575,120]
[356554639,1742652631590,-151.11,0.00026849,2]
[356554640,1742652631600,-150.0,0.00029534,2]
[356554641,1742652631609,-48.97797518,0.00029534,2]
[356554642,1742652631703,-101.02202482,0.00029534,2]
[356554643,1742652631713,-148.97797518,0.00043806,2]
[356554653,1742652637597,-324.14202482,0.00043806,2]
[356554654,1742652637607,-350.0,0.00044557,30]
[356554655,1742652637617,-151.7112,0.0004485,2]
[356554656,1742652637626,-182.22937733,0.0004495,120]
[356554657,1742652637710,-4813.19162267,0.0004495,120]
[356554658,1742652637719,-1000.0,0.0004497,14]
[356554659,1742652637728,-646.87,0.00045013,120]
[356554660,1742652637738,-250.0,0.00045044,2]
[356554661,1742652637747,-528.59,0.0004507,2]
[356554662,1742652637756,-1000.0,0.00045181,14]
[356554663,1742652637766,-1000.0,0.00045214,2]
[356554664,1742652637775,-202.07,0.00045268,2]
[356554665,1742652637785,-1000.0,0.00045479,14]
[356554666,1742652637794,-1000.0,0.00045491,14]
[356554667,1742652637804,-5071.27837733,0.00045651,2]
[356554670,1742652639890,-18828.72162267,0.00045651,2]
[356554671,1742652639900,-265.36,0.00045684,2]
[356554672,1742652639910,-684.75,0.00045688,2]
[356554673,1742652639920,-150.0,0.00045752,4]
[356554674,1742652639929,-2000.0,0.00045753,120]
[356554675,1742652639938,-2000.0,0.00045753,120]
[356554676,1742652639947,-2000.0,0.00045753,120]
[356554677,1742652639956,-2000.0,0.00045753,120]
[356554678,1742652639965,-2000.0,0.00045753,120]
[356554679,1742652639974,-2000.0,0.00045753,120]
[356554680,1742652639984,-2000.0,0.00045753,120]
[356554681,1742652639993,-2000.0,0.00045753,120]
[356554682,1742652640003,-2000.0,0.00045753,120]
[356554683,1742652640012,-2000.0,0.00045753,120]
[356554684,1742652640021,-2000.0,0.00045753,120]
[356554685,1742652640030,-521.16697976,0.00045753,120]
[356554686,1742652640042,-548.95884166,0.00045753,120]
[356554687,1742652640054,-929.87417858,0.00045753,120]
[356554688,1742652640063,-627.52174954,0.00045753,120]
[356554689,1742652640078,-1372.47825046,0.00045753,120]
[356554690,1742652640088,-2000.0,0.00045753,120]
[356554691,1742652640097,-2000.0,0.00045753,120]
[356554692,1742652640107,-2000.0,0.00045753,120]
[356554693,1742652640117,-2000.0,0.00045753,120]
[356554694,1742652640126,-2000.0,0.00045753,120]
[356554695,1742652640136,-2000.0,0.00045753,120]
[356554696,1742652640147,-2000.0,0.00045753,120]
[356554697,1742652640156,-2000.0,0.00045753,120]
[356554698,1742652640166,-2000.0,0.00045753,120]
[356554699,1742652640176,-2000.0,0.00045753,120]
[356554700,1742652640189,-2000.0,0.00045753,120]
[356554701,1742652640200,-2000.0,0.00045753,120]
[356554702,1742652640209,-2000.0,0.00045753,120]
[356554703,1742652640219,-2000.0,0.00045753,120]
[356554704,1742652640231,-2000.0,0.00045753,120]
[356554705,1742652640244,-2000.0,0.00045753,120]
[356554706,1742652640264,-2000.0,0.00045753,120]
[356554707,1742652640273,-2000.0,0.00045753,120]
[356554708,1742652640283,-2000.0,0.00045753,120]
[356554709,1742652640293,-2000.0,0.00045753,120]
[356554710,1742652640303,-2000.0,0.00045753,120]
[356554711,1742652640313,-2000.0,0.00045753,120]
[356554712,1742652640322,-2000.0,0.00045753,120]
[356554713,1742652640331,-2000.0,0.00045753,120]
[356554714,1742652640341,-2000.0,0.00045753,120]
[356554715,1742652640350,-2000.0,0.00045753,120]
[356554716,1742652640360,-2000.0,0.00045753,120]
[356554717,1742652640370,-2000.0,0.00045753,120]
[356554718,1742652640380,-2000.0,0.00045753,120]
[356554719,1742652640389,-2000.0,0.00045753,120]
[356554720,1742652640399,-2000.0,0.00045753,120]
[356554721,1742652640408,-2000.0,0.00045753,120]
[356554722,1742652640418,-2000.0,0.00045753,120]
[356554723,1742652640427,-2000.0,0.00045753,120]
[356554724,1742652640441,-2000.0,0.00045753,120]
[356554725,1742652640455,-2045.57968302,0.00045753,120]
[356554726,1742652640474,-389.01,0.00045999,2]
[356554727,1742652640483,-2726.77,0.00045999,2]
[356554728,1742652640493,-150.99,0.00045999,2]
[356554729,1742652640503,-500.0,0.00046027,2]
[356554730,1742652640513,-473.12,0.0004607,2]
[356554731,1742652640522,-154.42,0.000463,39]
[356554732,1742652640532,-2000.0,0.00046301,120]
[356554733,1742652640542,-1995.992,0.00046301,120]
[356554734,1742652640553,-200.0,0.00046317,30]
[356554735,1742652640563,-183.03,0.0004633,2]
[356554736,1742652640573,-434.38600223,0.00046369,2]
[356554737,1742652640583,-10649.88865133,0.00046375,15]
[356554738,1742652640592,-10451.45460179,0.00046475,15]
[356554739,1742652640602,-614.6448749,0.00046475,18]
[356554740,1742652640611,-179.47893137,0.00046475,28]
[356554741,1742652640620,-573.4769,0.00046475,2]
[356554742,1742652640630,-5670.3889,0.00046475,2]
[356554743,1742652640640,-5000.0,0.00046475,120]
[356554744,1742652640649,-733.466,0.00046475,2]
[356554745,1742652640659,-50977.6266,0.00046475,120]
[356554746,1742652640668,-150.0,0.00046548,30]
[356554747,1742652640677,-150.0,0.00046548,30]
[356554748,1742652640687,-150.0,0.00046548,30]
[356554749,1742652640696,-150.00000001,0.00046548,30]
[356554750,1742652640705,-511.8135761,0.00046564,120]
[356554751,1742652640714,-19491.24062659,0.00046565,3]
[356554771,1742652645553,-159.15,0.00045813,2]
[356554772,1742652645563,-159.15,0.00045944,2]
[356554773,1742652645572,-159.15,0.00046075,2]
[356554774,1742652645581,-159.15,0.00046206,2]
[356554775,1742652645591,-216.31,0.00046565,3]
[356554776,1742652645722,-159.15,0.00046337,2]
[356554777,1742652645732,-510.58463894,0.00046565,3]
[356554778,1742652645783,-5824.38148017,0.00046565,3]
[356554807,1742653069036,-202.45,0.0002679,30]
[356554810,1742653508772,-1651.5187988,0.00012,2]
[356554811,1742653536230,1536.99596197,8e-05,2]
[356554812,1742653580485,150.21204027,0.00015,20]
[356554813,1742653586357,-160.65,0.0001194,2]
[356554957,1742653829316,-212.522252,0.00011939,2]
[356554958,1742653829342,-150.0,0.00011999,2]
[356554959,1742653829368,-837.477748,0.00012,2]
[356554964,1742653831711,-380.37594222,0.00012,2]
[356554965,1742653831793,-2989.57778966,0.00012,2]
[356554966,1742653831944,-419.999999,0.00012,2]
[356554967,1742653831956,-860.99999975,0.00012,2]
[356554968,1742653831987,-17853.00072888,0.00012,2]
[356554969,1742653832043,-8171.5,0.00012,2]
[356555140,1742653837638,-939.85,0.00012,2]
[356555141,1742653837713,-920.64707108,0.00012,2]
[356555145,1742653839847,-1678.34939266,0.00012,2]
[356555146,1742653840005,-1067.74915415,0.00012,2]
[356555147,1742653840091,-0.0001356,0.00012,2]
[356555148,1742653840102,-1797.86060066,0.00012,2]
[356555149,1742653840175,-1728.31156128,0.00012,2]
[356555150,1742653840187,-1285.09837437,0.00012,2]
[356555151,1742653840198,-1659.05564763,0.00012,2]
[356555158,1742653842912,-1382.99999,0.00012,2]
[356555159,1742653844399,-12254.11681759,0.00012,2]
[356555160,1742653845879,-40466.99869494,0.00012,2]
[356555161,1742653845964,-1287.65059539,0.00012,2]
[356555162,1742653846049,-656.60300001,0.00012,2]
[356555163,1742653846061,-1715.92592412,0.00012,2]
[356555173,1742654066204,-287.93438391,0.00025528,30]
[356555177,1742654223022,-296.89615342,0.00012,2]
[356555178,1742654232248,-62.06561609,0.00025528,30]
[356555179,1742654232271,-97.93438391,0.0002679,30]
[356555182,1742654310338,-250.01656051,0.00025925,11]
[356555183,1742654373354,-281.61309658,0.0002679,30]
[356555201,1742655031978,-300.0,0.00011999,2]
[356555202,1742655031991,-47163.75274366,0.00012,2]
[356555203,1742655032000,-150.0,0.000132,2]
[356555204,1742655032009,-1313.85803134,0.00022959,2]
[356555205,1742655032019,-767.23043949,0.00025925,11]
[356555206,1742655032028,-918.00251951,0.0002679,30]
[356555207,1742655032037,-166.13,0.00026849,2]
[356555208,1742655032047,-153.48,0.00026849,2]
[356555209,1742655032056,-7834.49919986,0.0003,2]
[356555210,1742655032065,-300.0,0.0003161,15]
[356555211,1742655032074,-287.93438391,0.000319,6]
[356555212,1742655032083,-150.0,0.00034548,10]
[356555213,1742655032092,-1500.0,0.0003488,30]